Cogmind - Beta 13 @@@ ROGUE MODE // 2024.05.23 @ 09:22:40 Player: Shiba Result: Destroyed by YI-UF0 with YI-UF0's Doublenader Performance ------------- Evolutions (1) 500 Regions Visited (3) 600 Robots Destroyed (35) 175 Value Destroyed (826) 826 Prototype IDs (1) 20 Alien Tech Used (0) 0 Bonus (76) 76 TOTAL SCORE: 2197 Bonus ------- High Alert Combat Kills 55 Follower Combat Kills 21 Cogmind --------- Core Integrity 0/400 Matter 295/300 Energy 98/100 System Corruption 1% Temperature Cool (0) Movement Core (50) Location -9/Mines Parts ------- > --- POWER (1) -------- (None) > --- PROPULSION (4) --- (None) > --- UTILITY (2) ------ (None) > --- WEAPON (2) ------- (None) > --- INVENTORY (5) ---- Aluminum Leg Light Armor Plating Hacking Suite Grenade Launcher Katana Peak State ------------ > --- POWER ------------ Ion Engine > --- PROPULSION ------- Light Treads Light Treads Light Treads Improved Aluminum Leg > --- UTILITY ---------- Small Storage Unit Trap Extractor > --- WEAPON ----------- Improved EM Shotgun Heavy Assault Rifle > --- INVENTORY -------- Light Ion Engine Aluminum Leg Light Armor Plating Hacking Suite EM Pulse Gun Assault Rifle Grenade Launcher Katana [Rating: 15] Favorites ----------- Power Ion Engine Engine Ion Engine Propulsion Light Treads Treads Light Treads Leg Aluminum Leg Utility Small Storage Unit Device Trap Extractor Storage Small Storage Unit Protection Light Armor Plating Weapon Light Assault Rifle Energy Gun EM Pulse Gun Ballistic Gun Light Assault Rifle Launcher Grenade Launcher Build | -11 -10 -9 -9 ------- Run | Yrd Mat Mat Min Slots Evolved 2 | . . 2 . Power . | . . . . Propulsion 2 | . . 2 . Utility . | . . . . Weapon . | . . . . Parts Attached 40 | 6 1 32 1 Power 5 | 1 . 4 . Engine 5 | 1 . 4 . Core . | . . . . Reactor . | . . . . Propulsion 16 | 2 . 14 . Treads 12 | . . 12 . Leg 4 | 2 . 2 . Wheel . | . . . . Hover . | . . . . Flight . | . . . . Utility 5 | 1 1 3 . Device 2 | . . 2 . Storage 1 | 1 . . . Processor . | . . . . Hackware . | . . . . Protection 2 | . 1 1 . Artifact . | . . . . Weapon 14 | 2 . 11 1 Energy Gun 6 | . . 6 . Energy Cannon . | . . . . Ballistic Gun 7 | 2 . 4 1 Ballistic Cannon . | . . . . Launcher 1 | . . 1 . Special Weapon . | . . . . Impact Weapon . | . . . . Slashing Weapon . | . . . . Piercing Weapon . | . . . . Special Melee Weapon . | . . . . Unidentified Prototypes 1 | . . 1 . Parts Lost 17 | . . 11 6 Power 2 | . . 2 . Propulsion 8 | . . 5 3 Utility 1 | . . 1 . Weapon 6 | . . 3 3 Highest Loss Streak 6 | . . 6 6 To Critical Strikes 1 | . . 1 . Average Slot Usage (%) 94 | . 99 93 87 Engine 11 | . 14 10 9 Treads 26 | . . 33 37 Leg 10 | . 28 5 . Device 7 | . . 9 9 Storage 11 | . 14 11 9 Protection 3 | . 13 1 . Energy Gun 7 | . . 10 8 Ballistic Gun 14 | . 28 10 11 Naked Turns 4 | . . . 4 Heaviest Build 18 | 13 16 18 15 Greatest Support 80 | 20 20 80 80 Greatest Overweight (x) 4 | 4 . . . Average Overweight (x) . | . . . . Largest Inventory Capacity 8 | 8 8 8 8 Average Capacity 7 | 7 8 8 7 Most Carried 8 | 6 7 8 7 Average Carried 6 | 2 6 7 6 Final Capacity 8 | 8 8 8 5 Final Carried 7 | 6 7 7 5 Class Distribution -------------------- 58% | Mutant 41% | Scavenger-Mutant Dominant Class ---------------- Mutant | -10/Materials Scavenger-Mutant | -9/Materials Scavenger-Mutant | -9/Mines Resources | -11 -10 -9 -9 ----------- Run | Yrd Mat Mat Min Matter Collected 734 | 229 42 463 . Remotely . | . . . . Salvage Created 1038 | . 42 996 . Parts 93 | . 5 88 . Haulers Intercepted . | . . . . Recyclers Shooed . | . . . . Parts Field Recycled . | . . . . Retrieved Matter . | . . . . Parts Self-Destructed . | . . . . Prevented . | . . . . Kills | -11 -10 -9 -9 ------- Run | Yrd Mat Mat Min Combat Hostiles Destroyed 27 | . 3 24 . Guns 23 | . 3 20 . AOE 4 | . . 4 . Classes Destroyed 9 | . 1 8 . Worker 3 | . . 3 . Builder 2 | . . 2 . Operator 1 | . . 1 . Watcher 2 | . . 2 . Swarmer 11 | . 3 8 . Grunt 8 | . . 8 . Brawler 1 | . . 1 . Duelist 1 | . . 1 . Sentry 6 | . . 6 . Best Kill Streak 6 | . 3 6 . Combat Bots Only 6 | . 3 6 . Max Kills in Single Turn 3 | . 1 3 . Gunslinging 1 | . . 1 . Exploded 2 | . . 2 . Melee . | . . . . Uniques/NPCs Destroyed . | . . . . Combat | -11 -10 -9 -9 -------- Run | Yrd Mat Mat Min Hostile Shots Fired 197 | . 23 147 27 Missed 56 | . 6 44 6 Damage Taken 2445 | . 205 1523 717 Core 403 | . . 160 243 Absorbed by Shields . | . . . . Core Remaining (%) 100 | 100 100 . . Volleys Fired 71 | . 7 58 6 Largest 2 | . 2 2 2 Hottest 68 | . 40 68 43 Shots Fired 130 | . 14 108 8 Gun 128 | . 14 106 8 Cannon . | . . . . Launcher 2 | . . 2 . Special . | . . . . Kinetic 87 | . 14 65 8 Thermal . | . . . . Explosive 2 | . . 2 . Electromagnetic 41 | . . 41 . Robot Hit Streak 14 | . 2 14 6 Robot Miss Streak 4 | . 1 4 2 Penetration Max . | . . . . Secondary Targets 3 | . 1 2 . Max Gunslinging Chain 1 | . 1 1 . Shots Hit Robots 94 | . 8 80 6 Core Hits 57 | . 4 51 2 Critical Kills . | . . . . Critical Parts Destroyed . | . . . . Critical Strikes . | . . . . Melee Attacks . | . . . . Impact . | . . . . Slashing . | . . . . Piercing . | . . . . Sneak Attacks . | . . . . Combat Hostiles . | . . . . Follow-up Attacks . | . . . . Damage Inflicted 1631 | . 78 1480 73 Guns 1094 | . 78 943 73 Cannons . | . . . . Explosions 525 | . . 525 . Melee . | . . . . Ramming 12 | . . 12 . Kinetic 602 | . 78 451 73 Thermal 306 | . . 306 . Explosive 219 | . . 219 . Electromagnetic 492 | . . 492 . Impact . | . . . . Slashing . | . . . . Piercing . | . . . . Highest Corruption 1 | . . 1 1 Average Corruption 1 | . . 1 1 Corruption Purged . | . . . . Corruption Blocked . | . . . . Effects 4 | . . 4 . Matter Fused 2 | . . 2 . Energy Discharges 1 | . . 1 . Data Loss (major) 1 | . . 1 . Overload Shots . | . . . . Overflow Damage 3 | . . 3 . Projectiles . | . . . . Explosions 3 | . . 3 . Melee . | . . . . Knockbacks . | . . . . Impact . | . . . . Kinetic . | . . . . Secondary . | . . . . Self-Inflicted Damage 193 | . . 193 . Shots 5 | . . 5 . Rammed 5 | . . 5 . Targets Rammed 7 | . . 7 . Kicked . | . . . . Crushed 2 | . . 2 . Highest Temperature 60 | . 12 60 . Average Temperature 16 | . 6 18 . Received Heat Transfer 267 | . . 267 . Siege Activations . | . . . . Robots Corrupted . | . . . . Combat Hostiles . | . . . . Parts Fried 1 | . . 1 . Impact Corruptions . | . . . . Robots Melted . | . . . . Combat Hostiles . | . . . . Parts Melted . | . . . . Heat Transferred 250 | . . 250 . Parts Sabotaged . | . . . . Parts Stolen . | . . . . Parts Stripped . | . . . . Power Chain Reactions 2 | . . 2 . Alert | -11 -10 -9 -9 ------- Run | Yrd Mat Mat Min Peak Influence 507 | . 120 507 248 Initial 174 | . . 50 174 Average 206 | . 52 275 205 Maximum Alert Level 2 | . . 2 1 Low Security (%) 60 | 100 100 45 51 Level 1 16 | . . 19 48 Level 2 23 | . . 35 . Level 3 . | . . . . Level 4 . | . . . . Level 5 . | . . . . High Security . | . . . . Max Security . | . . . . Squads Dispatched 7 | . 1 5 1 Investigation 2 | . . 2 . Extermination . | . . . . Reinforcement 4 | . 1 3 . Assault 1 | . . . 1 Garrison . | . . . . Intercept . | . . . . Searches Triggered . | . . . . Construction Impeded . | . . . . Haulers Reinforced . | . . . . Active Scanning Responses . | . . . . Cargo Convoy Interrupts . | . . . . Stealth | -11 -10 -9 -9 --------- Run | Yrd Mat Mat Min Distress Signals 2 | . 1 1 . Communications Jammed . | . . . . Distress Signals . | . . . . Times Spotted 55 | . 10 37 8 Peak Tracking Total 8 | . 4 8 2 Tactical Retreats 2 | . 1 1 . Traps | -11 -10 -9 -9 ------- Run | Yrd Mat Mat Min Traps Triggered 5 | . 2 3 . Indirectly . | . . . . Trap Hack Attempts . | . . . . Triggered . | . . . . Disarmed 6 | . . 6 . Reprogrammed . | . . . . Reused . | . . . . Traps Extracted . | . . . . Installed . | . . . . Triggered . | . . . . Machines | -11 -10 -9 -9 ---------- Run | Yrd Mat Mat Min Machines Disabled 3 | . . 3 . Max in Single Turn 1 | . . 1 . Machines Repaired . | . . . . Machines Dismantled . | . . . . Machines Sabotaged . | . . . . Overloaded Fab Kills . | . . . . Hacking | -11 -10 -9 -9 --------- Run | Yrd Mat Mat Min Machines Accessed 6 | . 2 4 . Terminals 6 | . 2 4 . Fabricators . | . . . . Repair Stations . | . . . . Recycling Units . | . . . . Scanalyzers . | . . . . Garrison Access . | . . . . Total Hacks 20 | . 6 14 . Successful 4 | . 1 3 . Failed 16 | . 5 11 . Catastrophic 2 | . . 2 . Database Lockouts . | . . . . Manual 17 | . 6 11 . Terminals 20 | . 6 14 . Fabricators . | . . . . Repair Stations . | . . . . Recycling Units . | . . . . Scanalyzers . | . . . . Garrison Access . | . . . . Terminal Hacks 2 | . . 2 . Locate Traps 1 | . . 1 . Disarm Traps 1 | . . 1 . Fabricator Hacks . | . . . . Repair Station Hacks . | . . . . Recycling Unit Hacks . | . . . . Scanalyzer . | . . . . Garrison Access Hacks . | . . . . Unauthorized Hacks 2 | . 1 1 . Terminals 2 | . 1 1 . Botnet 2 | . 1 1 . Fabricators . | . . . . Repair Stations . | . . . . Recycling Units . | . . . . Scanalyzers . | . . . . Garrison Access . | . . . . Data Cores Recovered . | . . . . Used . | . . . . Hacking Detections 6 | . 2 4 . Full Trace Events 2 | . . 2 . Feedback Events 1 | . . 1 . Corruption 1 | . . 1 . Feedback Blocked . | . . . . Robot Schematics Acquired . | . . . . Robots Built . | . . . . Authchips . | . . . . Time . | . . . . Total Robot Build Rating . | . . . . Part Schematics Acquired . | . . . . Parts Built . | . . . . Authchips . | . . . . Time . | . . . . Total Part Build Rating . | . . . . Parts Repaired . | . . . . Time . | . . . . Parts Recycled . | . . . . Recycled Matter . | . . . . Retrieved Matter . | . . . . Retrieved Components . | . . . . Parts Scanalyzed . | . . . . Part Schematics Acquired . | . . . . Parts Damaged . | . . . . Bothacking | -11 -10 -9 -9 ------------ Run | Yrd Mat Mat Min Used RIF Installer . | . . . . Robots Hacked . | . . . . Non-combat . | . . . . Combat . | . . . . Robot Hacks Applied . | . . . . Relay Couplers Released . | . . . . Fabnet Peak Effective % . | . . . . Robots Rewired . | . . . . Allies Hacked . | . . . . Hacks Repelled . | . . . . Allies | -11 -10 -9 -9 -------- Run | Yrd Mat Mat Min Total Allies 1 | . . . 1 Largest Group 1 | . . . 1 Highest-Rated Group 31 | . . . 31 Highest-Rated Ally 31 | . . . 31 Total Orders . | . . . . Ally Attacks 8 | . . . 8 Total Damage 106 | . . . 106 Kills 3 | . . . 3 Allies Corrupted . | . . . . Allies Melted . | . . . . Intel | -11 -10 -9 -9 ------- Run | Yrd Mat Mat Min Robot Analysis Total . | . . . . Derelict Logs Recovered . | . . . . Drone Launches . | . . . . Drone Recoveries . | . . . . Exploration | -11 -10 -9 -9 ------------- Run | Yrd Mat Mat Min Turns Passed 1532 | 94 326 1011 101 Spaces Moved 812 | 61 246 447 58 Core 22 | 12 . . 10 Treads 464 | . . 416 48 Legs 326 | 49 246 31 . Wheels . | . . . . Hover . | . . . . Flight . | . . . . Fastest Speed 50 | 50 120 120 50 Average Speed 142 | 130 120 157 141 Slowest Speed 250 | 250 120 160 160 Overloaded Moves . | . . . . Propulsion Burnouts . | . . . . Robots Hopped . | . . . . Cave-ins Triggered . | . . . . Exploration Rate (%) 29 | 5 44 42 26 Regions Visited 3 Branch Regions 1 Pre-discovered Areas . | . . . . Known Exits Taken . | . . . . Unknown Exits Taken 3 | 1 1 1 . Scrap Searched . | . . . . Spaces Dug . | . . . . Terrain Destroyed 38 | . . 38 . Melee . | . . . . Projectile . | . . . . AOE 38 | . . 38 . Terrain Rammed . | . . . . Walls Destroyed . | . . . . Machines Disabled . | . . . . Actions | -11 -10 -9 -9 --------- Run | Yrd Mat Mat Min Total 1048 | 72 263 643 70 Wait 100 | . 9 86 5 Move 809 | 60 245 446 58 Hop . | . . . . Pick Up 14 | 6 1 7 . Fast Attach 20 | 6 1 13 . Attach 8 | . . 7 1 Detach . | . . . . Swap 12 | . . 12 . Drop 7 | . . 7 . Fire 71 | . 7 58 6 Melee . | . . . . Ram . | . . . . Kick . | . . . . Crush 7 | . . 7 . Escape Stasis . | . . . . Rewire . | . . . . Trap . | . . . . Miscellaneous . | . . . . Route ------- -11/Scrapyard -10/Materials (discovered 2 exits: *Mat / [*Min]) -9/Materials -9/Mines History --------- Turn | Location | Event 14 | -11/Scrapyard | Discovered new exit (range 15) 95 | -11/Scrapyard | Entered Materials 161 | -10/Materials | Discovered new exit (range 14) 304 | -10/Materials | Build established: Mutant 341 | -10/Materials | Discovered new exit (range 11) 421 | -10/Materials | Entered another Materials area 421 | -9/Materials | Evolved 2 slots: Propulsion x2 1055 | -9/Materials | Lost 6 parts (4n2w) 1186 | -9/Materials | Build established: Scavenger-Mutant 1395 | -9/Materials | Discovered new exit (range 15) 1432 | -9/Materials | Entered Mines 1433 | -9/Mines | Met a Derelict testing a Signal Generator 1514 | -9/Mines | Core integrity fell below 50% 1529 | -9/Mines | Released all parts (4) 1530 | -9/Mines | Core integrity fell below 20% 1533 | -9/Mines | Deemed a non-threat by the Exiles lab entrance 1533 | -9/Mines | Destroyed by YI-UF0 with YI-UF0's Doublenader Last Messages --------------- 01503_ G-34 Mercenary destroyed. 01504_ YI-UF0: "Whaaaaaaaa!" 01507_ G-47 Trooper destroyed. 01508_ YI-UF0 mumbles something. 01511_ EM Pulse Gun destroyed. 01515_ Lgt. Treads destroyed. 01517_ The unstable cave ceiling collapses. 01519_ Lgt. Treads destroyed. 01521_ Lgt. Assault Rifle destroyed. 01522_ The unstable cave ceiling collapses. 01525_ YI-UF0 mumbles something. 01525_ Lgt. Treads destroyed. 01527_ Hvy. Assault Rifle destroyed. 01529_ YI-UF0 mumbles something. 01529_ Released Lgt. Ion Engine. 01529_ Released Trap Extractor. 01529_ Released Sml. Storage Unit. 01529_ Released Lgt. Treads. 01530_ The unstable cave ceiling collapses. 01533_ "No threat detected, you may enter." Map ----- +----------------------------------------------------+ | | | | | | | | | | | | | | | | | | | | | | | | | | | ????????????????????????????????????????? | | ????????????????????????????????????????? | | ??????????????????????????###???????????? | | ?????????????????????????? #???????????? | | ?????????????????????????# #???????????? | | ?????????????????????????# #???????????? | | ?????????????????#???????# #???????????? | | ????????????????? ????##?# #???????????? | | ???????????????## #### ### ###?????????? | | ???????????????# # ## #######???? | | ??????????????## ## g ### | | ??????????????# ## | | ???????????????#@ !* | | ???????????????## * | | ???????????????# ! | | ????????????? [ ! | | ?????????? %% | | ??????? ## /* | | ?????? ### # =%! =! | | ??????# #[ # ###### # | | ??????### ##### ##### #?????? # | | ????????## #????# ] #??# #????????? ? | | ?????????###??????# #### ##?????????? | | ???????????????????## ##! ##????????? | | ????????????????????## ##???????? | | ?????????????????????# ##??????? | | ????????????###??????# #??????? | | ???????????## #?????# #### #??????? | | ???????????# #????# #???# *! #??????? | | ???????????? ##??# #????# ##??????? | | ?????????????# ##?# ##????###???????? | | ??????????????#& ### ##?????????????? | | ??????????????# ## #?????????????? | | ??????????????# ### ##????????????? | | ??????????????## ##???????????? | | ???????????????## = #???????????? | | ????????????????#######% #??????????? | +----------------------------------------------------+ Best States ------------- Heat Dissipation 28 Energy Generation 10 Energy Capacity 250 Matter Stores 300 Matter Capacity 300 Sight Range 16 Terrain Scan Density 10 Armor Coverage 150 Evasion (%) 55 Recoil Reduction 4 Trap Extractor Capacity 4 Item Schematics ----------------- None Robot Schematics ------------------ None Fabricated ------------ Nothing Alien Tech Used ----------------- None Achievements -------------- None Challenges ------------ None Game ------ Seed MobileKineticGuard Manual? 0 Play Time 00:17:22 Cumulative 11.5 hours Start 2024.05.22 @ 23:15:49 End 2024.05.23 @ 09:22:40 Sessions 3 Manual Loads 0 Difficulty Rogue Special Mode None Game No. 29 Rogue 29 Adventurer 0 Explorer 0 Win Type - Total 0 Types 0/0/0/0/0/0/0/0/0 Lore% 6 Gallery% 17 Achievement% 18 Wizard Run 0 Options --------- Layout 2 ASCII 0 Keyboard 0 Movement Mouse Keybinds 0 Fullscreen 2 Font 36/Terminus Map View 50x49 Zoom Use 0% Tactical HUD 1 Map Filters NONE Filters NONE Steam 1 RUN: 86990c88-2f83-4fef-8dee-b41c9e6f2efb